Cogmind - Beta 16 @@@ ROGUE MODE // 2025.10.23 @ 00:37:41 Player: Petvaria Result: Destroyed by H-66 Slayer with Gauss Rifle Performance ------------- Evolutions (4) 2000 Regions Visited (5) 1000 Robots Destroyed (54) 270 Value Destroyed (1357) 1357 Prototype IDs (27) 540 Alien Tech Used (0) 0 Bonus (757) 757 TOTAL SCORE: 5924 Bonus ------- Registered with UFD 300 Met Optimus in HQ 500 Friendly Fire -43 Cogmind --------- Core Integrity 0/850 Matter 184/300 Energy 100/100 System Corruption 7% Temperature Cool (0) Movement Core (50) Location -6/Factory Parts ------- > --- POWER (1) -------- (None) > --- PROPULSION (5) --- (None) > --- UTILITY (7) ------ (None) > --- WEAPON (2) ------- (None) > --- INVENTORY (5) ---- Experimental Sensor Array Multitool DRS Beacon (Ready) Peak State ------------ > --- POWER ------------ Nuclear Core > --- PROPULSION ------- Medium Treads Medium Treads Medium Treads Medium Treads Medium Treads > --- UTILITY ---------- Large Storage Unit Subdweller Optics Hardened Light Armor Plating Hardened Heavy Armor Plating > --- WEAPON ----------- Junk Cannon > --- INVENTORY -------- Nuclear Core Nuclear Core Improved Treads Medium Treads Medium Treads VTOL Module VTOL Module Experimental Sensor Array Improved Medium Armor Plating Improved Medium Armor Plating Improved Shield Generator Subdweller Machine Gun Improved Datajack Multitool DRS Beacon [Rating: 53] Favorites ----------- Power Subdweller Power Source Engine Subdweller Power Source Power Core Nuclear Core Propulsion Light Treads Treads Light Treads Flight Unit VTOL Module Utility Scrap Shield Device Seismic Detector Storage Large Storage Unit Protection Scrap Shield Weapon Medium Laser Energy Gun Medium Laser Ballistic Gun Assault Rifle Ballistic Cannon Battle Cannon Special Weapon Multitool Build | -11 -10 -10 -9 -9 -6 ------- Run | Yrd Mat Sub Rec Scr Fac Slots Evolved 8 | . . . . . 8 Power . | . . . . . . Propulsion 3 | . . . . . 3 Utility 5 | . . . . . 5 Weapon . | . . . . . . Parts Attached 43 | 7 2 17 . 7 10 Power 6 | 1 . 4 . . 1 Engine 5 | 1 . 4 . . . Core 1 | . . . . . 1 Reactor . | . . . . . . Propulsion 16 | 2 . 4 . 3 7 Treads 14 | 2 . 4 . 3 5 Leg . | . . . . . . Wheel . | . . . . . . Hover . | . . . . . . Flight 2 | . . . . . 2 Utility 11 | 2 2 3 . 2 2 Device 2 | 1 . . . . 1 Storage 3 | 1 1 . . 1 . Processor . | . . . . . . Hackware . | . . . . . . Protection 6 | . 1 3 . 1 1 Artifact . | . . . . . . Weapon 10 | 2 . 6 . 2 . Energy Gun 3 | 1 . 2 . . . Energy Cannon . | . . . . . . Ballistic Gun 3 | 1 . 2 . . . Ballistic Cannon 2 | . . 2 . . . Launcher . | . . . . . . Special Weapon 2 | . . . . 2 . Impact Weapon . | . . . . . . Slashing Weapon . | . . . . . . Piercing Weapon . | . . . . . . Special Melee Weapon . | . . . . . . Unidentified Prototypes 1 | . . . . 1 . Parts Lost 9 | . . 5 . . 4 Power 3 | . . 2 . . 1 Propulsion 3 | . . 1 . . 2 Utility 3 | . . 2 . . 1 Weapon . | . . . . . . Highest Loss Streak 3 | . . 3 . . 3 To Critical Strikes . | . . . . . . Average Backups 6 | 3 8 5 5 5 8 Power . | . 1 . . . . Propulsion 1 | 1 3 1 1 1 2 Utility . | . . . 1 1 2 Weapon 2 | . 2 2 2 2 1 Tool/Special . | . . . . . . Unused Backups 24 | . 2 11 . 1 10 Power 2 | . . . . . 2 Propulsion 8 | . 2 3 . 1 2 Utility 7 | . . 3 . . 4 Weapon 6 | . . 5 . . 1 Tool/Special 1 | . . . . . 1 Average Slot Usage (%) 85 | . 100 84 85 85 42 Engine 13 | . 14 13 14 14 2 Treads 27 | . 28 27 28 28 15 Storage 5 | . 14 2 . 3 5 Protection 11 | . 9 11 14 13 6 Energy Gun 8 | . 14 11 . . . Ballistic Gun 8 | . 14 4 14 11 . Ballistic Cannon 6 | . . 11 14 4 . Special Weapon 2 | . . . . 9 5 Peak Build Rating 53 | 7 7 16 16 23 53 Average Rating 13 | 4 6 12 16 17 27 On Entrance 11 | . 7 7 16 16 23 Avg Prop Armor Cover (%) 4 | . . . . . 4 Naked Turns 34 | . . . . . 34 Heaviest Build 68 | 15 32 34 34 44 68 Greatest Support 140 | 40 40 40 40 46 140 Greatest Overweight (x) . | . . . . . . Average Overweight (x) . | . . . . . . Largest Inventory Capacity 15 | 8 15 15 5 15 15 Average Capacity 8 | 5 12 6 5 7 13 Most Carried 15 | 5 9 15 5 10 15 Average Carried 6 | 4 8 5 5 5 9 Final Capacity 15 | 8 15 5 5 15 5 Final Carried 9 | 4 9 5 5 8 3 Class Distribution -------------------- 46% | Mutant 34% | Subdweller-Mutant 19% | Derelict-Mutant Dominant Class ---------------- Mutant | -10/Materials Mutant | -10/Subcaves Subdweller-Mutant | -9/Recycling Subdweller-Mutant | -9/Scraptown Derelict-Mutant | -6/Factory Resources | -11 -10 -10 -9 -9 -6 ----------- Run | Yrd Mat Sub Rec Scr Fac Matter Collected 1393 | 283 220 701 59 103 27 Remotely . | . . . . . . Salvage Created 1657 | 109 603 696 53 53 143 Parts 111 | 8 33 55 5 4 6 Haulers Intercepted 2 | . 2 . . . . Recyclers Shooed 2 | . 2 . . . . Parts Field Recycled . | . . . . . . Retrieved Matter . | . . . . . . Parts Self-Destructed 21 | . . 21 . . . Prevented . | . . . . . . Parts Restored . | . . . . . . Kills | -11 -10 -10 -9 -9 -6 ------- Run | Yrd Mat Sub Rec Scr Fac Combat Hostiles Destroyed 44 | . 17 21 1 1 4 Melee 2 | . . . . 1 1 Guns 27 | . 17 9 1 . . Cannons 13 | . . 12 . . 1 Classes Destroyed 14 | 3 3 4 . 1 3 Worker 2 | 2 . . . . . Tunneler 1 | 1 . . . . . Hauler 2 | . 2 . . . . Recycler 3 | 1 2 . . . . Turret 2 | . . 2 . . . Swarmer 18 | . 12 6 . . . Saboteur 1 | . . . . . 1 Grunt 5 | . 5 . . . . Sentry 2 | . . 1 1 . . Specialist 1 | . . . . . 1 Programmer 2 | . . . . . 2 Subdweller 14 | . . 14 . . . Scientist 1 | . . 1 . . . Scrapper 1 | . . . . 1 . Best Kill Streak 6 | 4 6 4 1 1 3 Combat Bots Only 6 | . 6 4 1 1 3 Max Kills in Single Turn 2 | 1 2 1 1 1 1 Gunslinging 1 | . 1 . . . . Exploded . | . . . . . . Melee 1 | . . . . 1 1 Uniques/NPCs Destroyed . | . . . . . . Combat | -11 -10 -10 -9 -9 -6 -------- Run | Yrd Mat Sub Rec Scr Fac Hostile Shots Fired 427 | . 72 169 . . 186 Missed 144 | . 22 56 . . 66 Hits 283 | . 50 113 . . 120 Melee 1 | . . . . . 1 Projectile 282 | . 50 113 . . 119 AOE 4 | . . 2 . . 2 Critical Strikes 4 | . 1 2 . . 1 Part Disruptions 4 | . . . . . 4 Damage Taken 3992 | . 454 1645 . . 1893 Core 1079 | . 79 139 . . 861 Absorbed by Shields . | . . . . . . Core Remaining (%) 56 | 100 . . . 12 . Volleys Fired 199 | 12 59 100 15 . 13 Largest 2 | 2 2 2 2 . 1 Hottest 100 | 70 70 100 70 . . Shots Fired 355 | 24 118 184 16 . 13 Gun 238 | 24 118 95 1 . . Cannon 104 | . . 89 15 . . Launcher . | . . . . . . Special 13 | . . . . . 13 Kinetic 196 | 12 59 109 16 . . Thermal 146 | 12 59 75 . . . Explosive . | . . . . . . Electromagnetic . | . . . . . . Impact 13 | . . . . . 13 Robot Hit Streak 32 | 7 8 32 4 . 9 Robot Miss Streak 7 | 3 6 7 . . 1 Penetration Max . | . . . . . . Secondary Targets 2 | . 2 . . . . Max Gunslinging Chain 1 | . 1 . . . . Shots Hit Robots 225 | 15 68 131 1 . 10 Core Hits 81 | 5 30 44 1 . 1 Critical Kills 1 | . 1 . . . . Critical Parts Destroyed 3 | . . . . . 3 Critical Strikes 11 | 1 6 1 . . 3 Burn 6 | 1 5 . . . . Destroy 1 | . 1 . . . . Blast 1 | . . 1 . . . Smash 3 | . . . . . 3 Melee Attacks . | . . . . . . Impact . | . . . . . . Slashing . | . . . . . . Piercing . | . . . . . . Sneak Attacks . | . . . . . . Combat Hostiles . | . . . . . . Follow-up Attacks . | . . . . . . Damage Inflicted 4469 | 196 891 2410 24 1 947 Guns 2360 | 196 891 1249 24 . . Cannons 1161 | . . 1161 . . . Explosions . | . . . . . . Melee . | . . . . . . Ramming 1 | . . . . 1 . Kinetic 2000 | 121 480 1375 24 . . Thermal 1521 | 75 411 1035 . . . Explosive . | . . . . . . Electromagnetic . | . . . . . . Impact 947 | . . . . . 947 Slashing . | . . . . . . Piercing . | . . . . . . Highest Corruption 7 | . . . . . 7 Average Corruption 3 | . . . . . 3 Corruption Purged . | . . . . . . Corruption Blocked . | . . . . . . Effects 6 | . . . . . 6 Message Errors 1 | . . . . . 1 Matter Fused 2 | . . . . . 2 Data Loss (minor) 2 | . . . . . 2 Alerts 1 | . . . . . 1 Overload Shots . | . . . . . . Overflow Damage 466 | . . 6 . . 460 Projectiles 466 | . . 6 . . 460 Explosions . | . . . . . . Melee . | . . . . . . Knockbacks 23 | . . 11 . . 12 Impact 9 | . . . . . 9 Kinetic 11 | . . 11 . . . Secondary 3 | . . . . . 3 Self-Inflicted Damage . | . . . . . . Shots . | . . . . . . Rammed . | . . . . . . Targets Rammed 1 | . . . . 1 . Kicked . | . . . . . . Crushed 1 | . . . . 1 . Highest Temperature 287 | 90 84 287 . . . Average Temperature 32 | 42 25 100 . . . Received Heat Transfer 816 | . 90 693 . . 33 Siege Activations . | . . . . . . Martial Activations . | . . . . . . Shielding Activations . | . . . . . . Robots Disrupted . | . . . . . . Combat Hostiles . | . . . . . . Robots Corrupted 2 | . . . . . 2 Combat Hostiles 2 | . . . . . 2 Parts Fried 1 | . . . . . 1 Impact Corruptions 13 | . . . . . 13 Robots Melted . | . . . . . . Combat Hostiles . | . . . . . . Parts Melted 3 | . 1 1 . . 1 Heat Transferred 3321 | 296 1591 1434 . . . Parts Sabotaged 3 | . . . . . 3 Parts Stolen . | . . . . . . Parts Stripped . | . . . . . . Power Chain Reactions . | . . . . . . Alert | -11 -10 -10 -9 -9 -6 ------- Run | Yrd Mat Sub Rec Scr Fac Maximum Alert Level 1 | . 1 . . . . Low Security (%) 99 | 100 98 . 100 . 100 Level 1 . | . 1 . . . . Level 2 . | . . . . . . Level 3 . | . . . . . . Level 4 . | . . . . . . Level 5 . | . . . . . . High Security . | . . . . . . Max Security . | . . . . . . Peak Influence 213 | 10 213 . 80 . 102 Initial 79 | . . . 79 . . Average 30 | . 37 . 28 . 11 Influence Increases 911 | 20 443 265 28 . 155 Destroy 0b10 Robot/C 620 | . 340 180 20 . 80 Destroy 0b10 Robot/NC 40 | 20 20 . . . . Destroy Leader 104 | . 64 10 . . 30 Disable Machine 30 | . . . . . 30 Destroy Structure 12 | . 4 . 8 . . Partial Spotted 15 | . . . . . 15 Lose Combat Pursuer 90 | . 15 75 . . . Influence Decreases 874 | 20 443 99 194 . 118 Entered New Map 87 | . . . 87 . . Time Decay 731 | 20 443 83 107 . 78 Lost Part 56 | . . 16 . . 40 Squads Dispatched 4 | . 2 . . . 2 Investigation 1 | . 1 . . . . Extermination 2 | . . . . . 2 Reinforcement 1 | . 1 . . . . Assault . | . . . . . . Garrison . | . . . . . . Intercept . | . . . . . . Searches Triggered . | . . . . . . Construction Impeded . | . . . . . . Haulers Reinforced . | . . . . . . Active Scanning Responses . | . . . . . . Cargo Convoy Interrupts 1 | . . . . . 1 Stealth | -11 -10 -10 -9 -9 -6 --------- Run | Yrd Mat Sub Rec Scr Fac Distress Signals 3 | . 3 . . . . Communications Jammed . | . . . . . . Distress Signals . | . . . . . . Times Spotted 89 | . 37 28 . 3 21 Peak Tracking Total 14 | . 6 6 . 3 14 Tactical Retreats 4 | . 1 3 . . . Traps | -11 -10 -10 -9 -9 -6 ------- Run | Yrd Mat Sub Rec Scr Fac Traps Triggered 3 | . 2 1 . . . Indirectly . | . . . . . . Trap Hack Attempts . | . . . . . . Triggered . | . . . . . . Disarmed . | . . . . . . Reprogrammed . | . . . . . . Reused . | . . . . . . Traps Extracted . | . . . . . . Installed . | . . . . . . Triggered . | . . . . . . Machines | -11 -10 -10 -9 -9 -6 ---------- Run | Yrd Mat Sub Rec Scr Fac Machines Disabled 3 | . . 1 . . 2 Max in Single Turn 1 | . . 1 . . 1 Machines Repaired . | . . . . . . Machines Dismantled . | . . . . . . Machines Sabotaged . | . . . . . . Overloaded Fab Kills . | . . . . . . Hacking | -11 -10 -10 -9 -9 -6 --------- Run | Yrd Mat Sub Rec Scr Fac Machines Accessed 7 | . . 2 . 2 3 Terminals 3 | . . . . . 3 Fabricators . | . . . . . . Repair Stations . | . . . . . . Recycling Units . | . . . . . . Scanalyzers . | . . . . . . Garrison Access . | . . . . . . Total Hacks 19 | . . 6 . 7 6 Successful 14 | . . 6 . 7 1 Failed 5 | . . . . . 5 Catastrophic 2 | . . . . . 2 Database Lockouts . | . . . . . . Manual 5 | . . . . . 5 Terminals 6 | . . . . . 6 Fabricators . | . . . . . . Repair Stations . | . . . . . . Recycling Units . | . . . . . . Scanalyzers . | . . . . . . Garrison Access . | . . . . . . Terminal Hacks 13 | . . 6 . 7 . Record 5 | . . 5 . . . Robot Analysis 6 | . . . . 6 . Proto ID Catalog 2 | . . 1 . 1 . Fabricator Hacks . | . . . . . . Repair Station Hacks . | . . . . . . Recycling Unit Hacks . | . . . . . . Scanalyzer . | . . . . . . Garrison Access Hacks . | . . . . . . Unauthorized Hacks 1 | . . . . . 1 Terminals 1 | . . . . . 1 Botnet 1 | . . . . . 1 Fabricators . | . . . . . . Repair Stations . | . . . . . . Recycling Units . | . . . . . . Scanalyzers . | . . . . . . Garrison Access . | . . . . . . Data Cores Recovered . | . . . . . . Used . | . . . . . . Hacking Detections 2 | . . . . . 2 Full Trace Events . | . . . . . . Feedback Events . | . . . . . . Feedback Blocked . | . . . . . . Robot Schematics Acquired . | . . . . . . Robots Built . | . . . . . . Authchips . | . . . . . . Time . | . . . . . . Total Robot Build Rating . | . . . . . . Part Schematics Acquired . | . . . . . . Parts Built . | . . . . . . Authchips . | . . . . . . Time . | . . . . . . Total Part Build Rating . | . . . . . . Part Studies Acquired . | . . . . . . Parts Repaired . | . . . . . . Time . | . . . . . . Parts Recycled . | . . . . . . Recycled Matter . | . . . . . . Retrieved Matter . | . . . . . . Retrieved Components . | . . . . . . Parts Scanalyzed . | . . . . . . Part Schematics Acquired . | . . . . . . Parts Damaged . | . . . . . . Bothacking | -11 -10 -10 -9 -9 -6 ------------ Run | Yrd Mat Sub Rec Scr Fac Used RIF Installer . | . . . . . . Robots Hacked . | . . . . . . Non-combat . | . . . . . . Combat . | . . . . . . Robot Hacks Applied . | . . . . . . Relay Couplers Released . | . . . . . . Fabnet Peak Effective % . | . . . . . . Robots Rewired . | . . . . . . Allies Hacked . | . . . . . . Hacks Repelled . | . . . . . . Allies | -11 -10 -10 -9 -9 -6 -------- Run | Yrd Mat Sub Rec Scr Fac Total Allies . | . . . . . . Largest Group . | . . . . . . Highest-Rated Group . | . . . . . . Highest-Rated Ally . | . . . . . . Total Orders . | . . . . . . Ally Attacks . | . . . . . . Total Damage . | . . . . . . Kills . | . . . . . . Allies Corrupted . | . . . . . . Allies Melted . | . . . . . . Intel | -11 -10 -10 -9 -9 -6 ------- Run | Yrd Mat Sub Rec Scr Fac Active Infowar (turns) 861 | 20 710 . . . 131 Optics 131 | . . . . . 131 Seismic 730 | 20 710 . . . . Robot Analysis Total 6 | . . . . 6 . Derelict Logs Recovered 5 | . . 1 . 4 . Drone Launches . | . . . . . . Drone Recoveries . | . . . . . . Exploration | -11 -10 -10 -9 -9 -6 ------------- Run | Yrd Mat Sub Rec Scr Fac Turns Passed 11192 | 189 2416 4895 341 2644 707 Spaces Moved 6310 | 95 1355 2676 184 1489 511 Core 70 | 14 . . . . 56 Treads 6143 | 81 1355 2676 184 1489 358 Legs . | . . . . . . Wheels . | . . . . . . Hover . | . . . . . . Flight 97 | . . . . . 97 Fastest Speed 35 | 50 160 160 160 152 35 Average Speed 155 | 143 160 160 160 155 124 Slowest Speed 160 | 160 160 160 160 160 160 Overloaded Moves . | . . . . . . Propulsion Burnouts . | . . . . . . Robots Hopped 1 | . . . . . 1 Potential Cave-ins . | . . . . . . Cave-ins Triggered . | . . . . . . Exploration Rate (%) 59 | 5 100 97 49 90 16 Regions Visited 5 Branch Regions 3 Pre-discovered Areas 2 | . . 1 . 1 . Known Exits Taken . | . . . . . . Unknown Exits Taken 5 | 1 1 1 1 1 . Scrap Searched 22 | . . 16 . 6 . Spaces Dug 8 | . . . 8 . . Terrain Destroyed 17 | . . 8 9 . . Melee . | . . . . . . Projectile 17 | . . 8 9 . . AOE . | . . . . . . Terrain Rammed . | . . . . . . Walls Destroyed . | . . . . . . Machines Disabled . | . . . . . . Actions | -11 -10 -10 -9 -9 -6 --------- Run | Yrd Mat Sub Rec Scr Fac Total 7313 | 123 1487 3103 215 1813 572 Wait 648 | . 61 260 17 304 6 Move 6304 | 94 1354 2675 183 1489 509 Hop 1 | . . . . . 1 Pick Up 50 | 10 7 14 . 6 13 Fast Attach 21 | 1 1 10 . 3 6 Attach 14 | 6 . 3 . 1 4 Detach 1 | . . . . . 1 Swap 14 | . 1 6 . 4 3 Drop 42 | . 4 17 . 6 15 Fire 199 | 12 59 100 15 . 13 Melee . | . . . . . . Ram . | . . . . . . Kick . | . . . . . . Crush . | . . . . . . Escape Stasis . | . . . . . . Rewire . | . . . . . . Trap . | . . . . . . Miscellaneous 19 | . . 18 . . 1 Route ------- -11/Scrapyard -10/Materials (discovered 6 exits: [*Mat x3] / [*Min x2] / *Sub) -10/Subcaves (discovered 3 exits: [*Mat x2] / [*Rec]) -9/Recycling -9/Scraptown (discovered 2 exits: *Fac x2) -6/Factory History --------- Turn | Location | Event 5 | -11/Scrapyard | Discovered new exit (range 14) 190 | -11/Scrapyard | Entered Materials 306 | -10/Materials | Build established: Mutant 437 | -10/Materials | Discovered new exit (range 7) 602 | -10/Materials | Discovered new exit (range 2) 659 | -10/Materials | Discovered new exit (range 10) 1152 | -10/Materials | Discovered new exit (range 16) 1774 | -10/Materials | Discovered new exit (range 11) 2598 | -10/Materials | Discovered new exit (range 6) 2606 | -10/Materials | Entered Subcaves 2607 | -10/Subcaves | Approached by a straggling Scientist 2811 | -10/Subcaves | Shifting Twisted Machinery released Flamer 2956 | -10/Subcaves | Core integrity fell below 50% 3000 | -10/Subcaves | Lost 3 parts (1p1n1u) 3025 | -10/Subcaves | Visited Clippyterm 3029 | -10/Subcaves | Learned location of Extension (-5) 3029 | -10/Subcaves | Learned Factory trap positions 3312 | -10/Subcaves | Discovered new exit (range 15) 3846 | -10/Subcaves | Discovered new exit (range 5) 4744 | -10/Subcaves | Learned location of 1 exit from Materials 4934 | -10/Subcaves | Build established: Derelict-Mutant 5375 | -10/Subcaves | Visited 4L-MR0's lab 5944 | -10/Subcaves | Build established: Subdweller-Mutant 6411 | -10/Subcaves | Discovered new exit (range 15) 6415 | -10/Subcaves | Core integrity fell below 20% 7054 | -10/Subcaves | Disturbed a concealed Subdweller 7501 | -10/Subcaves | Entered Recycling 7804 | -9/Recycling | Scanned before Scraplab entrance 7826 | -9/Recycling | Entered Scraplab 7839 | -9/Recycling | Discovered new exit (range 2) 7842 | -9/Recycling | Entered Scraptown 8006 | -9/Scraptown | Heard Great Nut preacher, LISTEN AND RECITE! 8134 | -9/Scraptown | Scanned Subdweller tech in exchange for log data 8138 | -9/Scraptown | Learned Research stockpile data 8140 | -9/Scraptown | Learned Research terminal intel 8164 | -9/Scraptown | Discovered new exit (range 7) 8225 | -9/Scraptown | Visited Spacefarers 8234 | -9/Scraptown | Visited Cyclists 8271 | -9/Scraptown | Visited Assassins FH 8286 | -9/Scraptown | Visited Shadow of the Wyrm 8681 | -9/Scraptown | Visited Awakened 8732 | -9/Scraptown | Visited CR-KLE's Repair Center 8760 | -9/Scraptown | Visited TADAMA 8947 | -9/Scraptown | Visited UFD Registry 8947 | -9/Scraptown | Registered with UFD as "Carbontalker" 9043 | -9/Scraptown | Entered Cyclist Reading Room 9182 | -9/Scraptown | Guru changed UFD alias to "Dualspreader" 9347 | -9/Scraptown | Visited Derelict Rescue Squad 9356 | -9/Scraptown | Found DRS Beacon 9411 | -9/Scraptown | Visited Curators Association 9563 | -9/Scraptown | Delivered Scrap Shield to a Scientist 9702 | -9/Scraptown | Visited DA-N13 Charitable Foundation 9708 | -9/Scraptown | Found DCF Scrap (26 items) 9790 | -9/Scraptown | Visited Analyses Database 9824 | -9/Scraptown | Visited Infowarlord's Domain 9832 | -9/Scraptown | Found Exp. Sensor Array 9853 | -9/Scraptown | Visited Science Guys 9909 | -9/Scraptown | Visited Science Testing Area 9938 | -9/Scraptown | Visited Junk Cannon Lab 9946 | -9/Scraptown | Found Prototype Special Weapon 9951 | -9/Scraptown | Identified Junk Cannon 10032 | -9/Scraptown | Build established: Derelict-Mutant 10084 | -9/Scraptown | Met Optimus 10084 | -9/Scraptown | Accepted into 0bPrime 10175 | -9/Scraptown | Discovered new exit (range 3) 10484 | -9/Scraptown | Civil war broke out across Scraptown 10486 | -9/Scraptown | Entered Factory 10486 | -6/Factory | Evolved 8 slots: Propulsion x3, Utility x5 10487 | -6/Factory | Loaded intel: 71 trap records 11088 | -6/Factory | Cargo convoy interrupted 11154 | -6/Factory | Core integrity fell below 50% 11178 | -6/Factory | Lost 3 parts (1p1n1u) 11189 | -6/Factory | Core integrity fell below 20% 11193 | -6/Factory | Destroyed by H-66 Slayer with Gauss Rifle Last Messages --------------- K-01 Serf collects debris. Acquired VTOL Module. R-10 Processor collects Nuclear Core. Penetrated by Slug. R-10 Processor collects Imp. Medium Armor Plating. K-01 Serf collects debris. Slug penetrates Wall. VTOL Module destroyed. Slug penetrates Wall. Penetrated by Slug. System corrupted: Component data lost. Power Conduit explodes. P-60 Hacker destroyed. VTOL Module destroyed. Power Conduit explodes. X-72 Disruptor suffers critical hit (Destroy). Knocked back. Acquired 7 matter. Penetrated by Slug. Map ----- +----------------------------------------------------+ | ?????????????????????????????????????????????????? | | ?????????????????????????????????????????????????? | | ?????????????????????????????????????????????????? | | ?????????????????????????????????????????????????? | | ?????????????????????????????????????????????????? | | ?????????????????????????????????????????????????? | | ?????????????????????????????????????????????????? | | ?????????????????????????????????????????????????? | | ?????????????????????????????????????????????????? | | ?????????????????????????????????????????????????? | | ??????????????????????????? ?????????????????????? | | ????????????????????????""" "????????????????????? | | ????????????????????????""" """??????????????????? | | ??????????????????? ??? ??????????????????? | | ??????????????????? ??? ???????????????????? | | ??????????????????? ??? ???????????????????? | | ???????????????????# ?? #???????????????????? | | ???????????????????#^ ?? #???????????????????? | | ???????????????????# ?"" #???????????????????? | | ???????????????????# """ #???????????????????? | | ???????????????????# """ #???????????????????? | | ???????????????????# #???????????????????? | | ???????????????????# """ #???????????????????? | | ???????????????????# """ #???????????????????? | | ???????????????????# """ #???????????????????? | | ???????????????????#^^ @ #???????????????????? | | ???????????????????# #???????????????????? | | ???????????????????# """ #???????????????????? | | ???????????????????# """" #???????????????????? | | ############+#######^ "F"" ###?????????????????? | | # R "" ????^?????????? | | # % """ ???^^?????????? | | # "" ??^??????????? | | ? """" + ??^^?????????? | | ? """" # H h ?????????????? | | ? """" # """ #############?????????????? | | ? """" # " #????????????????????? | | ? # " #????????????????????? | | ?######### #????????????????????? | | ?????????# #????????????????????? | | ?????????# + "#???????????????????? | | ?????????# #???????????????????? | | ?????????# #??????????????????? | | ?????????# # #??????????????????? | | ?????????# # #?????????????????? | | ?????????# #! #?????????????????? | | ?????????+ # ??????????????????? | | ?????????# # ????????????????????? | | ?????????# #####" ##????????????????????? | | ?????????# #????## ?????????????????????????? | +----------------------------------------------------+ Best States ------------- Heat Dissipation 37 Energy Generation 15 Energy Capacity 250 Matter Stores 300 Matter Capacity 300 Sight Range 21 Terrain Scan Density 10 Armor Coverage 800 Evasion (%) 63 Recoil Reduction 5 Item Schematics ----------------- None Robot Schematics ------------------ None Fabricated ------------ Nothing Repaired ---------- Nothing Studied --------- None Alien Tech Used ----------------- None Achievements -------------- Bob, First Of His Name Civilization 2243 Jackpot Link The Feds Longdome?! Uncivil War You May Approach The Wall Challenges ------------ None Game ------ Seed IonShrapnelLattice Manual? 0 Play Time 00:50:09 Cumulative 304.2 hours Start 2025.10.22 @ 23:35:00 End 2025.10.23 @ 00:37:41 Sessions 1 Manual Loads 0 Difficulty Rogue Special Mode None Game No. 236 Rogue 236 Adventurer 0 Explorer 0 Win Type - Total 25 Types 12/1/7/2/1/0/0/1/0/1 Lore% 94 Gallery% 87 Achievement% 53 Wizard Run 0 Options --------- Layout 1 ASCII 0 Keyboard 0 Movement Numpad Keybinds 0 Fullscreen 1 Font 24/Proggy Map View 50x35 Zoom Use 0% Tactical HUD 0 Map Filters NONE Filters NONE Steam 1 RUN: 0c638f09-d9a8-480f-8fd7-cf1391091996